Workbook

Sheet PROYECCIÓN
B2: CAPITAL INICIAL | G2: PLAN DE INVERSIÓN | R2: PLAN DE RETIROS | W2: Mercados
B3: INVERSIÓN | C3: % | D3: TEA | G3: Paquete | H3: Compra | I3: Porcentaje | R3: Meses | S3: Ganancia | T3: Retiros | U3: Total
B4: $ 20,000 | C4: 8.0% | D4: =EFFECT(C4*12,12) -> 151.82% | G4: ESTÁNDAR | H4: $ 7,500 | I4: =H4/$B$4 -> 37.50% | R4: 9 | S4: =VLOOKUP(R4,Q8:T19,4) -> $ 19,980 | T4: 5 | U4: =S4*T4 -> $ 99,900 | W4: Acciones
G5: PLUS | H5: $ 7,500 | I5: =H5/$B$4 -> 37.50% | W5: Cripto
B6: PROYECCIÓN | G6: PROFESIONAL | H6: $ 5,000 | I6: =H6/$B$4 -> 25.00% | R6: GANANCIA EXPONENCIAL | W6: Energías
B7: Mes | C7: Total | D7: Ganancia | G7: TOTAL | H7: =SUM(H4:H6) -> $ 20,000 | I7: =H7/B4 -> 100% | R7: Mes | S7: Inicial | T7: Ganancia | U7: Disponible | W7: Forex
B8: 10 | C8: =FV(C4,B8,,-B4) -> $ 43,178 | D8: =C8-B4 -> $ 23,178 | G8: =IF(H7>B4,"DISMINUIR",IF(H7<B4,"AGREGAR","")) ->  | H8: =IF((B4-H7)=0,"",B4-H7) ->  | I8: =IF(H7=B4,"OK","ERROR") -> OK | Q8: 1 | R8: =IF(Q8<=$R$4,Q8,"") -> 1 | S8: =IF(Q8=R8,$B$4,"") -> $ 20,000 | T8: =IF(Q8=R8,U8-$B$4,"") -> $ 1,600 | U8: =IF(Q8=R8,FV($C$4,R8,,-$B$4),"") -> $ 21,600 | W8: Índices
Q9: 2 | R9: 2 | S9: =IF(Q9=R9,$B$4,"") -> $ 20,000 | T9: $ 3,328 | U9: $ 23,328 | W9: Metales
B10: ALGORITMOS | D10: =COUNTIF(D14:D27,TRUE) -> 11 | H10: % DIST. | I10: 25% | Q10: 3 | R10: 3 | S10: $ 20,000 | T10: $ 5,194 | U10: $ 25,194
Q11: 4 | R11: 4 | S11: $ 20,000 | T11: $ 7,210 | U11: $ 27,210
B12: PAQUETE | C12: SELECCIÓN DE ALGORITMOS | H12: DISTRIBUCIÓN ALGORITMOS | Q12: 5 | R12: 5 | S12: $ 20,000 | T12: $ 9,387 | U12: $ 29,387
C13: Algoritmo | D13: Selección | E13: Base | F13: Mercado | G13: Histórico | H13: Compra | I13: Distribución | Q13: 6 | R13: 6 | S13: $ 20,000 | T13: $ 11,737 | U13: $ 31,737
B14: ESTÁNDAR 10% | C14: AUD/CAD | D14: TRUE | E14: $ 250 | F14: Forex | G14: =IF(K14=1,HISTORICO!C3,0) -> -7.69% | H14: =CÁLCULOS!C14 -> $ 938 | I14: =H14/$B$4 -> 4.7% | J14: =IF(I14>$I$10,"AR","") ->  | K14: =IF(D14=TRUE,1,0) -> 1 | Q14: 7 | R14: 7 | S14: $ 20,000 | T14: $ 14,276 | U14: $ 34,276
C15: AUD/USD | D15: TRUE | E15: $ 250 | F15: Forex | G15: =IF(K15=1,HISTORICO!C4,0) -> 2.15% | H15: =CÁLCULOS!D14 -> $ 938 | I15: =H15/$B$4 -> 4.7% | K15: =IF(D15=TRUE,1,0) -> 1 | Q15: 8 | R15: 8 | S15: $ 20,000 | T15: $ 17,019 | U15: $ 37,019
C16: EUR/GBP | D16: TRUE | E16: $ 250 | F16: Forex | G16: =IF(K16=1,HISTORICO!C5,0) -> 12.30% | H16: =CÁLCULOS!E14 -> $ 938 | I16: 4.7% | K16: 1 | Q16: 9 | R16: 9 | S16: $ 20,000 | T16: $ 19,980 | U16: $ 39,980
C17: EUR/JPY | D17: TRUE | E17: $ 250 | F17: Forex | G17: =IF(K17=1,HISTORICO!C6,0) -> 20.73% | H17: =CÁLCULOS!F14 -> $ 938 | I17: 4.7% | K17: 1 | Q17: 10
C18: EUR/USD | D18: TRUE | E18: $ 250 | F18: Forex | G18: =IF(K18=1,HISTORICO!C7,0) -> 4.80% | H18: =CÁLCULOS!G14 -> $ 938 | I18: 4.7% | K18: 1 | Q18: 11 | R18: =IF(Q18<=$R$4,Q18,"") -> 
C19: GBP/JPY | D19: TRUE | E19: $ 250 | F19: Forex | G19: =IF(K19=1,HISTORICO!C8,0) -> 15.20% | H19: =CÁLCULOS!H14 -> $ 938 | I19: 4.7% | K19: 1 | Q19: 12 | R19: =IF(Q19<=$R$4,Q19,"") -> 
C20: GBP/USD | D20: TRUE | E20: $ 250 | F20: Forex | G20: =IF(K20=1,HISTORICO!C9,0) -> -1.50% | H20: =CÁLCULOS!I14 -> $ 938 | I20: 4.7% | K20: 1
C21: USD/JPY | D21: TRUE | E21: $ 250 | F21: Forex | G21: =IF(K21=1,HISTORICO!C10,0) -> 14.80% | H21: =CÁLCULOS!J14 -> $ 938 | I21: 4.7% | K21: 1
B22: PLUS 11% | C22: WTI/USD | D22: TRUE | E22: $ 2,000 | F22: Energías | G22: =IF(K22=1,HISTORICO!C11,0) -> 17.45% | H22: =CÁLCULOS!C23 -> $ 3,750 | I22: 18.8% | K22: 1
C23: XAG/USD | D23: TRUE | E23: $ 2,000 | F23: Metales | G23: =IF(K23=1,HISTORICO!C12,0) -> 13.69% | H23: =CÁLCULOS!D23 -> $ 3,750 | I23: 18.8% | K23: 1
C24: XAU/USD | D24: FALSE | E24: $ 2,000 | F24: Metales | G24: =IF(K24=1,HISTORICO!C13,0) -> 0.00% | H24: =CÁLCULOS!E23 -> $ 0 | I24: 0.0% | K24: 0
C25: PEND | D25: FALSE | E25: $ 2,000 | G25: =IF(K25=1,HISTORICO!C14,0) -> 0.00% | H25: =CÁLCULOS!F23 -> $ 0 | I25: 0.0% | K25: 0
B26: PRO 12% | C26: SPX | D26: TRUE | E26: $ 5,000 | F26: Índices | G26: =IF(K26=1,HISTORICO!C15,0) -> 15.30% | H26: =CÁLCULOS!C33 -> $ 5,000 | I26: 25.0% | K26: 1
C27: PEND | D27: FALSE | E27: $ 5,000 | G27: =IF(K27=1,HISTORICO!C16,0) -> 0.00% | H27: =CÁLCULOS!D33 -> $ 0 | I27: 0.0% | K27: 0
E29: PROMEDIO | G29: =IF(SUM(G14:G27)=0,0,AVERAGEIF(G14:G27,"<>0")) -> 9.75% | H29: =SUM(H14:H27) -> $ 20,000
H30: =IF(H29=H7,"OK","ERROR") -> OK

Sheet HISTORICO
B2: Algoritmo | C2: Rentabilidad
B3: AUD/CAD | C3: -7.69%
B4: AUD/USD | C4: 2.15%
B5: EUR/GBP | C5: 12.30%
B6: EUR/JPY | C6: 20.73%
B7: EUR/USD | C7: 4.80%
B8: GBP/JPY | C8: 15.20%
B9: GBP/USD | C9: -1.50%
B10: USD/JPY | C10: 14.80%
B11: WTI/USD | C11: 17.45%
B12: XAG/USD | C12: 13.69%
B13: XAU/USD | C13: 20.73%
B14: PEND | C14: 0.00%
B15: SPX | C15: 15.30%
B16: PEND | C16: 0.00%

Sheet CÁLCULOS (hidden)
B2: Paquete | C2: Inversión | E2: Selección
B3: Estandar | C3: =PROYECCIÓN!H4 -> 7500
B4: Plus | C4: =PROYECCIÓN!H5 -> 7500 | E4: OK
B5: Pro | C5: =PROYECCIÓN!H6 -> 5000
B7: 250 | C7: 1 | D7: 2 | E7: 3 | F7: 4 | G7: 5 | H7: 6 | I7: 7 | J7: 8
C8: =PROYECCIÓN!K14 -> 1 | D8: =PROYECCIÓN!K15 -> 1 | E8: =PROYECCIÓN!K16 -> 1 | F8: =PROYECCIÓN!K17 -> 1 | G8: =PROYECCIÓN!K18 -> 1 | H8: =PROYECCIÓN!K19 -> 1 | I8: =PROYECCIÓN!K20 -> 1 | J8: =PROYECCIÓN!K21 -> 1 | K8: =SUM(C8:J8) -> 8
C9: =IF(C8=0,0,$B$7) -> 250 | D9: 250 | E9: 250 | F9: 250 | G9: 250 | H9: 250 | I9: 250 | J9: 250 | K9: =SUM(C9:J9) -> 2000
C10: =IF(C8=0,0,$C$3/$K$8) -> 937.5 | D10: 937.5 | E10: 937.5 | F10: 937.5 | G10: 937.5 | H10: 937.5 | I10: 937.5 | J10: 937.5 | K10: =SUM(C10:J10) -> 7500
C11: =IF(C8=0,0,IF(C10<$B$7,$K$10/$B$7,C10)) -> 937.5 | D11: 937.5 | E11: 937.5 | F11: 937.5 | G11: 937.5 | H11: 937.5 | I11: 937.5 | J11: 937.5 | K11: =K10/B7 -> 30
C12: =IF(C8=0,0,COUNTIF(C11,K11)) -> 0 | D12: =IF(D8=0,0,COUNTIF($C$11:D11,$K$11)) -> 0 | E12: =IF(E8=0,0,COUNTIF($C$11:E11,$K$11)) -> 0 | F12: =IF(F8=0,0,COUNTIF($C$11:F11,$K$11)) -> 0 | G12: =IF(G8=0,0,COUNTIF($C$11:G11,$K$11)) -> 0 | H12: =IF(H8=0,0,COUNTIF($C$11:H11,$K$11)) -> 0 | I12: =IF(I8=0,0,COUNTIF($C$11:I11,$K$11)) -> 0 | J12: =IF(J8=0,0,COUNTIF($C$11:J11,$K$11)) -> 0
C13: =IF(C8=0,0,IF(C12<=$K$11,1,0)) -> 1 | D13: 1 | E13: 1 | F13: 1 | G13: 1 | H13: 1 | I13: 1 | J13: 1 | K13: =SUM(C13:J13) -> 8
C14: =IF(C13=0,0,IF(C12<=C11,$K$10/$K$13,0)) -> 937.5 | D14: 937.5 | E14: 937.5 | F14: 937.5 | G14: 937.5 | H14: 937.5 | I14: 937.5 | J14: 937.5 | K14: =SUM(C14:J14) -> 7500
B16: 2000 | C16: 1 | D16: 2 | E16: 3 | F16: 4
C17: =PROYECCIÓN!K22 -> 1 | D17: =PROYECCIÓN!K23 -> 1 | E17: =PROYECCIÓN!K24 -> 0 | F17: =PROYECCIÓN!K25 -> 0 | K17: =SUM(C17:J17) -> 2
C18: =IF(C17=0,0,$B$16) -> 2000 | D18: =IF(D17=0,0,$B$16) -> 2000 | E18: 0 | F18: 0 | K18: =SUM(C18:J18) -> 4000
C19: =IF(C17=0,0,$C$4/$K$17) -> 3750 | D19: =IF(D17=0,0,$C$4/$K$17) -> 3750 | E19: =IF(E17=0,0,$C$4/$K$17) -> 0 | F19: =IF(F17=0,0,$C$4/$K$17) -> 0 | K19: =SUM(C19:J19) -> 7500
C20: =IF(C17=0,0,IF(C19<$B$16,$K$19/$B$16,C19)) -> 3750 | D20: =IF(D17=0,0,IF(D19<$B$16,$K$19/$B$16,D19)) -> 3750 | E20: 0 | F20: 0 | K20: =K19/B16 -> 3.75
C21: =IF(C17=0,0,COUNTIF(C20,K20)) -> 0 | D21: =IF(D17=0,0,COUNTIF($C$20:D20,$K$20)) -> 0 | E21: =IF(E17=0,0,COUNTIF($C$20:E20,$K$20)) -> 0 | F21: =IF(F17=0,0,COUNTIF($C$20:F20,$K$20)) -> 0
C22: =IF(C17=0,0,IF(C21<=$K$20,1,0)) -> 1 | D22: =IF(D17=0,0,IF(D21<=$K$20,1,0)) -> 1 | E22: 0 | F22: 0 | K22: =SUM(C22:J22) -> 2
C23: =IF(C22=0,0,IF(C21<=C20,$K$19/$K$22,0)) -> 3750 | D23: =IF(D22=0,0,IF(D21<=D20,$K$19/$K$22,0)) -> 3750 | E23: 0 | F23: 0 | K23: =SUM(C23:J23) -> 7500
B26: 5000 | C26: 1 | D26: 2
C27: =PROYECCIÓN!K26 -> 1 | D27: =PROYECCIÓN!K27 -> 0 | K27: =SUM(C27:J27) -> 1
C28: =IF(C27=0,0,$B$26) -> 5000 | D28: =IF(D27=0,0,$B$26) -> 0 | K28: =SUM(C28:J28) -> 5000
C29: =IF(C27=0,0,$C$5/$K$27) -> 5000 | D29: =IF(D27=0,0,$C$5/$K$27) -> 0 | K29: =SUM(C29:J29) -> 5000
C30: =IF(C27=0,0,IF(C29<$B$26,$K$29/$B$26,C29)) -> 5000 | D30: =IF(D27=0,0,IF(D29<$B$26,$K$29/$B$26,D29)) -> 0 | K30: =K29/B26 -> 1
C31: =IF(C27=0,0,COUNTIF(C30,K30)) -> 0 | D31: =IF(D27=0,0,COUNTIF($C$30:D30,$K$30)) -> 0
C32: =IF(C27=0,0,IF(C31<=$K$30,1,0)) -> 1 | D32: =IF(D27=0,0,IF(D31<=$K$30,1,0)) -> 0 | K32: =SUM(C32:J32) -> 1
C33: =IF(C32=0,0,IF(C31<=C30,$K$29/$K$32,0)) -> 5000 | D33: =IF(D32=0,0,IF(D31<=D30,$K$29/$K$32,0)) -> 0 | K33: =SUM(C33:J33) -> 5000

Sheet ALGORITMOS (hidden)
B2: INVERSIÓN | D2: $ 30,000
B4: ÍTEM | E4: ESTANDAR | M4: PLUS | Q4: PROFESIONAL
E5: AUD/CAD | F5: AUD/USD | G5: EUR/GBP | H5: EUR/JPY | I5: EUR/USD | J5: GBP/JPY | K5: GBP/USD | L5: USD/JPY | M5: WTI/USD | N5: XAG/USD | O5: XAU/USD | P5: =C21 -> 1 | Q5: SPX | R5: =C23 -> 1 | S5: PR-2 | T5: PR-2
B6: Precio | E6: $ 250 | F6: $ 250 | G6: $ 250 | H6: $ 250 | I6: $ 250 | J6: $ 250 | K6: $ 250 | L6: $ 250 | M6: $ 2,000 | N6: $ 2,000 | O6: $ 2,000 | P6: $ 2,000 | Q6: $ 5,000 | R6: $ 5,000 | S6: $ 5,000 | T6: $ 5,000
B7: Base | E7: $ 250 | F7: $ 500 | G7: $ 750 | H7: $ 1,000 | I7: $ 1,250 | J7: $ 1,500 | K7: $ 1,750 | L7: $ 2,000 | M7: $ 8,000 | N7: $ 10,000 | O7: $ 12,000 | P7: $ 16,000 | Q7: $ 20,000 | R7: $ 25,000 | S7: =IF(P5=0,27001,26001) -> $ 26,001 | T7: $ 30,001
B8: Tope | E8: $ 500 | F8: $ 750 | G8: $ 1,000 | H8: $ 1,250 | I8: $ 1,500 | J8: $ 1,750 | K8: $ 2,000 | L8: $ 8,000 | M8: $ 10,000 | N8: $ 12,000 | O8: =IF(P5=0,Q7,P7) -> $ 16,000 | P8: $ 20,000 | Q8: =IF(P5=0,27001,25000) -> $ 25,000 | R8: $ 26,001 | S8: $ 30,001
B10: EST | C10: AUD/CAD | D10: =SUM(E10:T10) -> $ 1,250 | E10: =IF(AND($D$2<E8,$D$2>=E7),$D$2,0) -> $ 0 | F10: =IF(AND($D$2<F8,$D$2>=F7),$D$2/2,0) -> $ 0 | G10: =IF(AND($D$2<G8,$D$2>=G7),$D$2/3,0) -> $ 0 | H10: =IF(AND($D$2<H8,$D$2>=H7),$D$2/4,0) -> $ 0 | I10: =IF(AND($D$2<I8,$D$2>=I7),$D$2/5,0) -> $ 0 | J10: =IF(AND($D$2<J8,$D$2>=J7),$D$2/6,0) -> $ 0 | K10: =IF(AND($D$2<K8,$D$2>=K7),$D$2/7,0) -> $ 0 | L10: =IF(AND($D$2<L8,$D$2>=L7),$D$2/8,0) -> $ 0 | M10: =IF(AND($D$2<M8,$D$2>=M7),($D$2-2000)/8,0) -> $ 0 | N10: =IF(AND($D$2<N8,$D$2>=N7),($D$2-N18*2)/8,0) -> $ 0 | O10: =IF(AND($D$2<O8,$D$2>=O7),($D$2-O18*3)/8,0) -> $ 0 | P10: =IF($P$5=0,0,IF(AND($D$2<P8,$D$2>=P7),($D$2-P18*4)/8,0)) -> $ 0 | Q10: =IF(AND($D$2<Q8,$D$2>=Q7),($D$2-(Q18+Q19+Q20+Q21+Q22))/8,0) -> $ 0 | R10: =IF(P5=0,0,(IF(AND($D$2<R8,$D$2>=R7),(($D$2-(R18+R19+R20+R21+R22+R23))/8),0))) -> $ 0 | S10: =IF(AND($D$2<S8,$D$2>=S7),(($D$2-(S18+S19+S20+S21+S22+S23))/8),0) -> $ 1,250 | T10: =IF($D$2>=T7,D2/3/8,0) -> $ 0
C11: AUD/USD | D11: =SUM(E11:T11) -> $ 1,250 | F11: =F10 -> $ 0 | G11: =G10 -> $ 0 | H11: $ 0 | I11: $ 0 | J11: $ 0 | K11: $ 0 | L11: $ 0 | M11: $ 0 | N11: =N10 -> $ 0 | O11: =O10 -> $ 0 | P11: =P10 -> $ 0 | Q11: $ 0 | R11: =$R$10 -> $ 0 | S11: =$S$10 -> $ 1,250 | T11: =T10 -> $ 0
C12: EUR/GBP | D12: $ 1,250 | G12: =G11 -> $ 0 | H12: $ 0 | I12: $ 0 | J12: $ 0 | K12: $ 0 | L12: $ 0 | M12: $ 0 | N12: $ 0 | O12: $ 0 | P12: $ 0 | Q12: $ 0 | R12: =$R$10 -> $ 0 | S12: =$S$10 -> $ 1,250 | T12: =T11 -> $ 0
C13: EUR/JPY | D13: $ 1,250 | H13: =H12 -> $ 0 | I13: $ 0 | J13: $ 0 | K13: $ 0 | L13: $ 0 | M13: $ 0 | N13: $ 0 | O13: $ 0 | P13: $ 0 | Q13: $ 0 | R13: $ 0 | S13: $ 1,250 | T13: $ 0
C14: EUR/USD | D14: $ 1,250 | I14: =I13 -> $ 0 | J14: $ 0 | K14: $ 0 | L14: $ 0 | M14: $ 0 | N14: $ 0 | O14: $ 0 | P14: $ 0 | Q14: $ 0 | R14: $ 0 | S14: $ 1,250 | T14: $ 0
C15: GBP/JPY | D15: $ 1,250 | J15: =J14 -> $ 0 | K15: $ 0 | L15: $ 0 | M15: $ 0 | N15: $ 0 | O15: $ 0 | P15: $ 0 | Q15: $ 0 | R15: $ 0 | S15: $ 1,250 | T15: $ 0
C16: GBP/USD | D16: $ 1,250 | K16: =K15 -> $ 0 | L16: =L15 -> $ 0 | M16: =M15 -> $ 0 | N16: $ 0 | O16: $ 0 | P16: $ 0 | Q16: $ 0 | R16: $ 0 | S16: $ 1,250 | T16: $ 0
C17: USD/JPY | D17: $ 1,250 | L17: =L16 -> $ 0 | M17: =M16 -> $ 0 | N17: $ 0 | O17: $ 0 | P17: $ 0 | Q17: $ 0 | R17: $ 0 | S17: $ 1,250 | T17: $ 0
B18: PLUS | C18: WTI/USD | D18: $ 2,500 | M18: =IF(AND($D$2>=M7,$D$2<M8),M6,0) -> $ 0 | N18: =IF(AND($D$2>=N7,$D$2<N8),D2/2/2,0) -> $ 0 | O18: =IF(AND($D$2>=O7,$D$2<O8),D2/2/3,0) -> $ 0 | P18: =IF($P$5=0,0,IF(AND($D$2>=P7,$D$2<P8),D2/2/4,0)) -> $ 0 | Q18: =IF(AND($D$2>=Q7,$D$2<Q8),P6,0) -> $ 0 | R18: =IF(P5=0,0,IF(AND($D$2>=R7,$D$2<R8),P6,0)) -> $ 0 | S18: =IF(AND($D$2>=S7,$D$2<S8),(D2-S22-S23)/2/4,0) -> $ 2,500 | T18: =IF($D$2>=T7,D2/3/4,0) -> $ 0
C19: XAG/USD | D19: $ 2,500 | N19: =N18 -> $ 0 | O19: =O18 -> $ 0 | P19: =$P$18 -> $ 0 | Q19: =IF(AND($D$2>=Q7,$D$2<Q8),P6,0) -> $ 0 | R19: =$R$18 -> $ 0 | S19: =S18 -> $ 2,500 | T19: =T18 -> $ 0
C20: XAU/USD | D20: $ 2,500 | O20: =O19 -> $ 0 | P20: =$P$18 -> $ 0 | Q20: =IF(AND($D$2>=Q7,$D$2<Q8),P6,0) -> $ 0 | R20: =$R$18 -> $ 0 | S20: =S19 -> $ 2,500 | T20: $ 0
C21: 1 | D21: $ 2,500 | P21: $ 0 | Q21: =IF($C$21=0,0,IF(AND($D$2>=Q7,$D$2<Q8),P6,0)) -> $ 0 | R21: =IF($C$21=0,0,$R$18) -> $ 0 | S21: =IF($C$21=0,0,S20) -> $ 2,500 | T21: $ 0
B22: PRO | C22: SPX | D22: $ 5,000 | Q22: =IF(AND($D$2>=Q7,$D$2<Q8),Q6,0) -> $ 0 | R22: =IF(P5=0,0,IF(AND($D$2>=R7,$D$2<R8),R6,0)) -> $ 0 | S22: =IF(AND($D$2>=S7,$D$2<S8),R6,0) -> $ 5,000 | T22: =IF($D$2>=T7,D2/3/2,0) -> $ 0
C23: 1 | D23: $ 5,000 | R23: =IF(P5=0,0,IF(AND($D$2>=R7,$D$2<R8),R6,0)) -> $ 0 | S23: =IF(C23=0,0,IF(AND($D$2>=S7,$D$2<S8),S6,0)) -> $ 5,000 | T23: =T22 -> $ 0
